fUST/lending_fUST_20250717
["ID","MTS","AMOUNT","RATE_DAILY","PERIOD"]
[372640536,1752726639104,-462.33031992,0.00018156,2]
[372640537,1752726639114,-460.0,0.00018156,2]
[372640538,1752726639123,-460.0,0.00018156,2]
[372640539,1752726639133,-460.0,0.00018156,2]
[372640540,1752726639142,-462.48138604,0.00018156,2]
[372640541,1752726639152,-460.77554494,0.00018156,2]
[372640542,1752726639162,-460.0,0.00018156,2]
[372640543,1752726639172,-460.0,0.00018156,2]
[372640544,1752726639181,-460.0,0.00018156,2]
[372640545,1752726639191,-460.0,0.00018156,2]
[372640546,1752726639204,-862.27819907,0.00018156,2]
[372640547,1752726639215,-1751.0,0.00018156,2]
[372640548,1752726639225,-460.0,0.00018156,2]
[372640549,1752726639235,-460.0,0.00018156,2]
[372640550,1752726639244,-460.0,0.00018156,2]
[372640551,1752726639254,-500.0,0.00018156,2]
[372640552,1752726639264,-500.0,0.00018156,2]
[372640553,1752726639273,-1754.47,0.00018156,2]
[372640554,1752726639285,-3587.76,0.00018156,2]
[372640555,1752726639295,-554.54,0.00018156,2]
[372640556,1752726639305,-554.54,0.00018156,2]
[372640557,1752726639315,-890.48,0.00018156,2]
[372640558,1752726639325,-460.0,0.00018156,2]
[372640559,1752726639334,-2118.08,0.00018156,2]
[372640560,1752726639343,-460.0,0.00018156,2]
[372640561,1752726639353,-64.77275854,0.00018157,2]
[372640562,1752726639369,-264.4125493,0.00018157,2]
[372640563,1752726639391,-130.81469216,0.00018157,2]
[372640564,1752726639400,-460.61825304,0.00018157,2]
[372640565,1752726639410,-460.0,0.00018157,2]
[372640566,1752726639420,-460.0,0.00018157,2]
[372640567,1752726639429,-460.0,0.00018157,2]
[372640568,1752726639439,-460.0,0.00018157,2]
[372640569,1752726639449,-460.0,0.00018157,2]
[372640570,1752726639458,-460.0,0.00018157,2]
[372640571,1752726639468,-460.54699593,0.00018157,2]
[372640572,1752726639478,-384.6065614,0.00018157,2]
[372640573,1752726639488,-153.54151181,0.00018157,2]
[372640577,1752726639611,-460.0,0.00018151,2]
[372640579,1752726639620,-308.71833066,0.00018157,2]
[372640580,1752726639630,-460.0,0.00018157,2]
[372640581,1752726639639,-460.0,0.00018157,2]
[372640582,1752726639649,-460.0,0.00018157,2]
[372640584,1752726639658,-460.0,0.00018157,2]
[372640586,1752726639668,-500.0,0.00018157,2]
[372640587,1752726639678,-460.0,0.00018157,2]
[372640588,1752726639688,-460.0,0.00018157,2]
[372640589,1752726639698,-460.0,0.00018157,2]
[372640591,1752726639709,-460.0,0.00018157,2]
[372640593,1752726639719,-460.0,0.00018157,2]
[372640595,1752726639728,-335.98684015,0.00018157,2]
[372640597,1752726639740,-124.01315985,0.00018157,2]
[372640599,1752726639750,-460.0,0.00018157,2]
[372640601,1752726639759,-460.0,0.00018157,2]
[372640603,1752726639768,-460.0,0.00018157,2]
[372640605,1752726639778,-460.0,0.00018157,2]
[372640607,1752726639787,-724.03,0.00018157,2]
[372640609,1752726639796,-460.0,0.00018157,2]
[372640611,1752726639806,-460.0,0.00018157,2]
[372640612,1752726639815,-460.0,0.00018157,2]
[372640613,1752726639825,-460.0,0.00018157,2]
[372640614,1752726639834,-460.0,0.00018157,2]
[372640616,1752726639844,-460.0,0.00018157,2]
[372640618,1752726639853,-460.0,0.00018157,2]
[372640619,1752726639862,-460.0,0.00018157,2]
[372640620,1752726639872,-460.0,0.00018157,2]
[372640621,1752726639882,-460.0,0.00018157,2]
[372640622,1752726639891,-460.0,0.00018157,2]
[372640623,1752726639902,-460.0,0.00018157,2]
[372640624,1752726639911,-460.0,0.00018157,2]
[372640625,1752726639921,-460.0,0.00018157,2]
[372640626,1752726639930,-460.0,0.00018157,2]
[372640627,1752726639940,-460.0,0.00018157,2]
[372640628,1752726639949,-460.0,0.00018157,2]
[372640629,1752726639959,-462.48850329,0.00018157,2]
[372640631,1752726639969,-460.0,0.00018157,2]
[372640632,1752726639978,-438.41982864,0.00018157,2]
[372640633,1752726639988,-460.0,0.00018157,2]
[372640634,1752726639997,-460.0,0.00018157,2]
[372640635,1752726640007,-460.0,0.00018157,2]
[372640636,1752726640016,-460.0,0.00018157,2]
[372640637,1752726640025,-462.66237575,0.00018157,2]
[372640638,1752726640035,-460.0,0.00018157,2]
[372640639,1752726640044,-460.0,0.00018157,2]
[372640640,1752726640054,-460.0,0.00018157,2]
[372640641,1752726640065,-223.61581782,0.00018157,2]
[372640642,1752726640074,-460.0,0.00018157,2]
[372640643,1752726640084,-460.0,0.00018157,2]
[372640644,1752726640094,-460.0,0.00018157,2]
[372640645,1752726640104,-460.0,0.00018157,2]
[372640646,1752726640113,-460.0,0.00018157,2]
[372640647,1752726640123,-460.0,0.00018157,2]
[372640648,1752726640132,-460.0,0.00018157,2]
[372640649,1752726640142,-460.0,0.00018157,2]
[372640650,1752726640151,-460.0,0.00018157,2]
[372640651,1752726640160,-460.0,0.00018157,2]
[372640652,1752726640170,-500.0,0.00018157,2]
[372640653,1752726640190,-460.0,0.00018157,2]
[372640654,1752726640200,-460.0,0.00018157,2]
[372640655,1752726640214,-460.0,0.00018157,2]
[372640656,1752726640224,-460.0,0.00018157,2]
[372640657,1752726640234,-554.54,0.00018157,2]
[372640658,1752726640244,-460.0,0.00018157,2]
[372640659,1752726640255,-460.0,0.00018157,2]
[372640660,1752726640264,-460.0,0.00018157,2]
[372640661,1752726640274,-460.62416688,0.00018157,2]
[372640662,1752726640286,-460.0,0.00018157,2]
[372640663,1752726640296,-460.0,0.00018157,2]
[372640664,1752726640307,-460.0,0.00018157,2]
[372640665,1752726640317,-460.0,0.00018157,2]
[372640666,1752726640326,-460.0,0.00018157,2]
[372640667,1752726640336,-460.0,0.00018157,2]
[372640668,1752726640346,-460.0,0.00018158,2]
[372640669,1752726640355,-460.0,0.00018158,2]
[372640670,1752726640365,-460.0,0.00018158,2]
[372640671,1752726640375,-460.0,0.00018158,2]
[372640672,1752726640385,-460.0,0.00018158,2]
[372640673,1752726640394,-500.0,0.00018158,2]
[372640674,1752726640404,-460.0,0.00018158,2]
[372640675,1752726640414,-460.68997358,0.00018158,2]
[372640676,1752726640424,-460.0,0.00018158,2]
[372640677,1752726640433,-460.99917421,0.00018158,2]
[372640678,1752726640443,-460.0,0.00018158,2]
[372640679,1752726640453,-460.0,0.00018158,2]
[372640680,1752726640462,-460.0,0.00018158,2]
[372640681,1752726640472,-460.0,0.00018158,2]
[372640682,1752726640482,-500.0,0.00018161,2]
[372640683,1752726640492,-396.5,0.00018269,2]
[372640684,1752726640502,-255.0,0.0001831,2]
[372640685,1752726640511,-205.92428686,0.00018315,2]
[372640686,1752726640521,-460.0,0.00018425,2]
[372640687,1752726640531,-460.0,0.00018425,2]
[372640688,1752726640541,-460.0,0.00018425,2]
[372640689,1752726640551,-460.0,0.00018425,2]
[372640690,1752726640561,-460.0,0.00018425,2]
[372640691,1752726640571,-460.0,0.00018425,2]
[372640692,1752726640580,-460.0,0.00018425,2]
[372640693,1752726640591,-460.0,0.00018425,2]
[372640694,1752726640600,-2162.71,0.00018425,2]
[372640695,1752726640612,-460.0,0.00018425,2]
[372640696,1752726640621,-460.0,0.00018425,2]
[372640697,1752726640632,-460.0,0.00018425,2]
[372640698,1752726640642,-460.0,0.00018425,2]
[372640699,1752726640652,-460.0,0.00018426,2]
[372640700,1752726640662,-460.0,0.00018426,2]
[372640701,1752726640672,-460.0,0.00018426,2]
[372640702,1752726640682,-460.0,0.00018426,2]
[372640703,1752726640691,-460.0,0.00018426,2]
[372640704,1752726640701,-460.0,0.00018426,2]
[372640705,1752726640712,-460.0,0.00018426,2]
[372640706,1752726640722,-460.0,0.00018426,2]
[372640707,1752726640732,-460.0,0.00018426,2]
[372640708,1752726640741,-460.0,0.00018426,2]
[372640709,1752726640751,-516.8448153,0.00018426,2]
[372640710,1752726640761,-460.0,0.00018426,2]
[372640711,1752726640772,-460.0,0.00018426,2]
[372640712,1752726640782,-460.0,0.00018426,2]
[372640713,1752726640792,-460.0,0.00018426,2]
[372640714,1752726640802,-460.0,0.00018426,2]
[372640715,1752726640816,-2745.49,0.00018426,2]
[372640716,1752726640827,-735.56,0.00018426,2]
[372640717,1752726640980,-500.0,0.00018426,2]
[372640718,1752726640990,-5690.65,0.00018426,2]
[372640719,1752726641000,-475.31,0.00018426,2]
[372640720,1752726641010,-460.0,0.00018426,2]
[372640721,1752726641020,-460.0,0.00018426,2]
[372640722,1752726641030,-460.0,0.00018426,2]
[372640723,1752726641040,-460.0,0.00018426,2]
[372640724,1752726641050,-2547.1,0.00018426,2]
[372640725,1752726641060,-460.0,0.00018426,2]
[372640726,1752726641070,-460.0,0.00018426,2]
[372640727,1752726641079,-460.0,0.00018426,2]
[372640728,1752726641089,-2232.09,0.00018426,2]
[372640729,1752726641099,-460.0,0.00018426,2]
[372640730,1752726641108,-1730.11,0.00018426,2]
[372640731,1752726641117,-460.0,0.00018426,2]
[372640732,1752726641127,-554.54,0.00018426,2]
[372640733,1752726641136,-587.73,0.00018426,2]
[372640734,1752726641146,-460.0,0.00018426,2]
[372640735,1752726641155,-460.0,0.00018426,2]
[372640736,1752726641165,-486.15,0.00018426,2]
[372640737,1752726641175,-460.0,0.00018426,2]
[372640738,1752726641185,-460.0,0.00018426,2]
[372640739,1752726641195,-460.0,0.00018426,2]
[372640740,1752726641209,-812.66,0.00018426,2]
[372640741,1752726641220,-460.0,0.00018427,2]
[372640742,1752726641231,-460.0,0.00018427,2]
[372640743,1752726641242,-460.0,0.00018427,2]
[372640744,1752726641251,-420.11214086,0.00018427,2]
[372640745,1752726641261,-460.0,0.00018427,2]
[372640746,1752726641271,-460.0,0.00018427,2]
[372640747,1752726641281,-460.0,0.00018427,2]
[372640748,1752726641292,-460.0,0.00018427,2]
[372640749,1752726641301,-386.88732317,0.00018427,2]
[372640750,1752726641312,-512.88,0.00018427,2]
[372640751,1752726641322,-460.0,0.00018427,2]
[372640752,1752726641331,-565.19,0.00018427,2]
[372640753,1752726641342,-460.0,0.00018427,2]
[372640754,1752726641352,-460.0,0.00018427,2]
[372640755,1752726641362,-460.0,0.00018427,2]
[372640756,1752726641372,-596.74,0.00018427,2]
[372640757,1752726641384,-460.0,0.00018427,2]
[372640758,1752726641395,-460.0,0.00018427,2]
[372640759,1752726641405,-460.0,0.00018427,2]
[372640760,1752726641415,-694.32,0.00018427,2]
[372640761,1752726641424,-460.0,0.00018427,2]
[372640762,1752726641433,-460.0,0.00018427,2]
[372640763,1752726641443,-460.0,0.00018427,2]
[372640764,1752726641454,-460.0,0.00018427,2]
[372640765,1752726641463,-460.0,0.00018427,2]
[372640766,1752726641473,-400.00000033,0.00018427,2]
[372640767,1752726641483,-460.0,0.00018427,2]
[372640768,1752726641493,-460.0,0.00018427,2]
[372640769,1752726641502,-460.0,0.00018427,2]
[372640770,1752726641512,-460.0,0.00018427,2]
[372640771,1752726641521,-460.0,0.00018427,2]
[372640772,1752726641531,-460.0,0.00018427,2]
[372640773,1752726641541,-539.79109942,0.00018427,2]
[372640774,1752726641550,-460.0,0.00018427,2]
[372640775,1752726641560,-832.54,0.00018427,2]
[372640776,1752726641569,-460.0,0.00018427,2]
[372640777,1752726641579,-656.44,0.00018427,2]
[372640778,1752726641588,-460.0,0.00018427,2]
[372640779,1752726641598,-198.67,0.00018427,2]
[372640780,1752726641608,-460.0,0.00018427,2]
[372640781,1752726641618,-460.0,0.00018427,2]
[372640782,1752726641627,-1700.78,0.00018427,2]
[372640783,1752726641637,-460.0,0.00018427,2]
[372640784,1752726641647,-460.0,0.00018427,2]
[372640785,1752726641656,-460.0,0.00018427,2]
[372640786,1752726641665,-460.0,0.00018427,2]
[372640787,1752726641674,-460.0,0.00018427,2]
[372640788,1752726641684,-500.0,0.00018427,2]
[372640789,1752726641693,-615.39,0.00018427,2]
[372640790,1752726641704,-460.0,0.00018427,2]
[372640791,1752726641713,-511.72,0.00018427,2]
[372640792,1752726641723,-460.0,0.00018427,2]
[372640793,1752726641732,-460.0,0.00018427,2]
[372640794,1752726641742,-460.0,0.00018427,2]
[372640795,1752726641751,-460.0,0.00018427,2]
[372640796,1752726641761,-468.29090664,0.00018427,2]
[372640797,1752726641771,-460.0,0.00018427,2]
[372640798,1752726641781,-544.06,0.00018427,2]
[372640799,1752726641791,-552.65,0.00018427,2]
[372640800,1752726641800,-460.0,0.00018427,2]
[372640801,1752726641809,-460.0,0.00018427,2]
[372640802,1752726641819,-584.72,0.00018427,2]
[372640803,1752726641830,-460.0,0.00018427,2]
[372640804,1752726641839,-914.95,0.00018427,2]
[372640805,1752726641849,-460.91944996,0.00018427,2]
[372640806,1752726641858,-656.43,0.00018427,2]
[372640807,1752726641867,-460.0,0.00018427,2]
[372640808,1752726641876,-460.0,0.00018427,2]
[372640809,1752726641886,-609.570089,0.00018427,2]
[372640810,1752726641896,-460.0,0.00018427,2]
[372640811,1752726641906,-662.47,0.00018427,2]
[372640812,1752726641916,-460.0,0.00018427,2]
[372640813,1752726641925,-3393.86,0.00018427,2]
[372640814,1752726641934,-460.0,0.00018427,2]
[372640815,1752726641945,-460.0,0.00018427,2]
[372640816,1752726641954,-992.05,0.00018427,2]
[372640817,1752726641963,-460.0,0.00018428,2]
[372640818,1752726641973,-460.0,0.00018428,2]
[372640819,1752726641983,-1294.68,0.00018428,2]
[372640820,1752726641993,-3741.88,0.00018428,2]
[372640821,1752726642002,-1382.55,0.00018428,2]
[372640822,1752726642011,-460.0,0.00018428,2]
[372640823,1752726642021,-500.0,0.00018429,2]
[372640824,1752726642030,-393.21,0.00018429,2]
[372640825,1752726642040,-554.54,0.00018429,2]
[372640826,1752726642049,-554.54,0.00018429,2]
[372640827,1752726642059,-168.58295641,0.0001843,2]
[372640828,1752726642069,-460.0,0.0001843,2]
[372640829,1752726642078,-461.87841701,0.0001843,2]
[372640830,1752726642088,-460.0,0.0001843,2]
[372640831,1752726642097,-1754.47,0.0001843,2]
[372640832,1752726642109,-3587.76,0.0001843,2]
[372640833,1752726642130,-890.48,0.0001843,2]
[372640834,1752726642140,-554.54,0.0001843,2]
[372640835,1752726642149,-2118.08,0.0001843,2]
[372640836,1752726642159,-460.0,0.0001843,2]
[372640837,1752726642169,-460.0,0.00018431,2]
[372640838,1752726642178,-460.0,0.00018431,2]
[372640839,1752726642188,-460.0,0.00018431,2]
[372640840,1752726642198,-460.0,0.00018431,2]
[372640841,1752726642211,-460.0,0.00018431,2]
[372640842,1752726642220,-460.0,0.00018431,2]
[372640843,1752726642230,-460.0,0.00018431,2]
[372640844,1752726642239,-724.03,0.00018431,2]
[372640845,1752726642249,-461.67691836,0.00018431,2]
[372640846,1752726642259,-460.0,0.00018431,2]
[372640848,1752726642269,-460.0,0.00018431,2]
[372640849,1752726642279,-460.0,0.00018431,2]
[372640850,1752726642290,-460.0,0.00018431,2]
[372640851,1752726642299,-460.0,0.00018431,2]
[372640852,1752726642308,-460.0,0.00018431,2]
[372640854,1752726642318,-460.0,0.00018431,2]
[372640855,1752726642327,-460.0,0.00018431,2]
[372640856,1752726642337,-460.0,0.00018431,2]
[372640857,1752726642347,-460.0,0.00018431,2]
[372640858,1752726642357,-214.18751773,0.00018431,2]
[372640859,1752726642366,-455.0,0.00018431,2]
[372640860,1752726642375,-460.0,0.00018431,2]
[372640861,1752726642385,-460.0,0.00018431,2]
[372640862,1752726642394,-184.21170141,0.00018431,2]
[372640863,1752726642404,-460.0,0.00018431,2]
[372640864,1752726642414,-460.0,0.00018431,2]
[372640865,1752726642424,-460.0,0.00018431,2]
[372640866,1752726642433,-460.0,0.00018431,2]
[372640867,1752726642442,-460.0,0.00018431,2]
[372640868,1752726642452,-460.0,0.00018431,2]
[372640869,1752726642462,-500.0,0.00018432,2]
[372640870,1752726642472,-460.0,0.00018432,2]
[372640871,1752726642482,-550.96,0.00018435,2]
[372640873,1752726642492,-1244.0,0.00018455,2]
[372640874,1752726642502,-150.0,0.00018558,2]
[372640876,1752726642512,-1264.86536828,0.00018601,2]
[372640877,1752726642522,-12607.95677342,0.00018687,2]
[372640878,1752726642537,-160.0,0.00018687,2]
[372640879,1752726642547,-525.67742785,0.00018687,2]
[372640881,1752726642558,-476.16111942,0.00018687,2]
[372640882,1752726642568,-214.44804168,0.00018687,2]
[372640883,1752726642577,-215.59244943,0.00018687,2]
[372640884,1752726642587,-160.0,0.00018687,2]
[372640885,1752726642596,-230.85589339,0.00018687,2]
[372640886,1752726642606,-839.15451687,0.00018687,2]
[372640887,1752726642615,-160.0,0.00018688,2]
[372640889,1752726642625,-554.54,0.00018693,2]
[372640890,1752726642635,-1244.0,0.00018695,2]
[372640892,1752726642645,-460.0,0.00018699,2]
[372640894,1752726642654,-460.0,0.00018699,2]
[372640895,1752726642664,-460.0,0.00018699,2]
[372640896,1752726642673,-460.0,0.00018699,2]
[372640897,1752726642683,-2162.71,0.00018699,2]
[372640898,1752726642692,-460.0,0.00018699,2]
[372640900,1752726642702,-460.0,0.00018699,2]
[372640901,1752726642712,-460.0,0.00018699,2]
[372640902,1752726642723,-460.0,0.000187,2]
[372640903,1752726642733,-460.0,0.000187,2]
[372640904,1752726642743,-429.1687796,0.000187,2]
[372640905,1752726642753,-460.0,0.000187,2]
[372640906,1752726642763,-429.1687796,0.000187,2]
[372640907,1752726642772,-460.0,0.000187,2]
[372640908,1752726642785,-429.1687796,0.000187,2]
[372640910,1752726642795,-427.4843028,0.000187,2]
[372640911,1752726642804,-460.0,0.000187,2]
[372640912,1752726642815,-460.0,0.000187,2]
[372640913,1752726642824,-460.0,0.000187,2]
[372640914,1752726642834,-2745.49,0.000187,2]
[372640916,1752726642843,-735.56,0.000187,2]
[372640917,1752726642853,-5690.65,0.000187,2]
[372640918,1752726642862,-475.31,0.000187,2]
[372640919,1752726642872,-460.0,0.000187,2]
[372640920,1752726642881,-460.0,0.000187,2]
[372640921,1752726642890,-2547.1,0.000187,2]
[372640922,1752726642900,-460.0,0.000187,2]
[372640923,1752726642910,-460.0,0.000187,2]
[372640924,1752726642920,-2232.09,0.000187,2]
[372640925,1752726642930,-1730.11,0.000187,2]
[372640926,1752726642939,-554.54,0.000187,2]
[372640927,1752726642949,-587.73,0.000187,2]
[372640928,1752726642958,-460.0,0.000187,2]
[372640929,1752726642968,-486.15,0.000187,2]
[372640930,1752726642977,-460.0,0.000187,2]
[372640931,1752726642987,-460.0,0.000187,2]
[372640932,1752726642996,-812.66,0.000187,2]
[372640933,1752726643006,-500.51885288,0.000187,2]
[372640934,1752726643015,-460.0,0.00018701,2]
[372640936,1752726643025,-460.0,0.00018701,2]
[372640937,1752726643037,-460.0,0.00018701,2]
[372640938,1752726643047,-460.0,0.00018701,2]
[372640939,1752726643056,-512.88,0.00018701,2]
[372640940,1752726643065,-460.0,0.00018701,2]
[372640941,1752726643075,-565.19,0.00018701,2]
[372640942,1752726643085,-460.0,0.00018701,2]
[372640943,1752726643094,-460.0,0.00018701,2]
[372640944,1752726643103,-596.74,0.00018701,2]
[372640945,1752726643113,-335.49729468,0.00018701,2]
[372640946,1752726643123,-460.0,0.00018701,2]
[372640947,1752726643132,-460.0,0.00018701,2]
[372640948,1752726643142,-694.32,0.00018701,2]
[372640949,1752726643152,-342.17872098,0.00018701,2]
[372640950,1752726643163,-460.0,0.00018701,2]
[372640951,1752726643172,-460.0,0.00018701,2]
[372640952,1752726643182,-460.0,0.00018701,2]
[372640953,1752726643192,-460.0,0.00018701,2]
[372640954,1752726643202,-460.0,0.00018701,2]
[372640955,1752726643214,-832.54,0.00018701,2]
[372640956,1752726643224,-656.44,0.00018701,2]
[372640957,1752726643234,-460.0,0.00018701,2]
[372640958,1752726643243,-1700.78,0.00018701,2]
[372640959,1752726643252,-460.0,0.00018701,2]
[372640960,1752726643261,-460.0,0.00018701,2]
[372640961,1752726643271,-460.0,0.00018701,2]
[372640962,1752726643280,-460.0,0.00018701,2]
[372640963,1752726643292,-615.39,0.00018701,2]
[372640964,1752726643301,-511.72,0.00018701,2]
[372640965,1752726643311,-182.06,0.00018701,2]
[372640966,1752726643321,-460.0,0.00018701,2]
[372640967,1752726643331,-460.0,0.00018701,2]
[372640968,1752726643342,-460.0,0.00018701,2]
[372640969,1752726643352,-544.06,0.00018701,2]
[372640970,1752726643371,-552.65,0.00018701,2]
[372640971,1752726643390,-460.0,0.00018701,2]
[372640972,1752726643400,-460.0,0.00018701,2]
[372640973,1752726643504,-584.72,0.00018701,2]
[372640974,1752726643515,-914.95,0.00018701,2]
[372640975,1752726643524,-656.43,0.00018701,2]
[372640976,1752726643535,-460.0,0.00018701,2]
[372640977,1752726643545,-460.0,0.00018701,2]
[372640978,1752726643554,-662.47,0.00018701,2]
[372640979,1752726643563,-3393.86,0.00018701,2]
[372640980,1752726643572,-460.0,0.00018701,2]
[372640981,1752726643582,-460.0,0.00018701,2]
[372640982,1752726643591,-992.05,0.00018701,2]
[372640983,1752726643601,-460.0,0.00018702,2]
[372640984,1752726643611,-1294.68,0.00018702,2]
[372640985,1752726643621,-3741.88,0.00018702,2]
[372640986,1752726643630,-1382.55,0.00018702,2]
[372640987,1752726643640,-554.54,0.00018703,2]
[372640988,1752726643649,-554.54,0.00018703,2]
[372640989,1752726643658,-460.0,0.00018704,2]
[372640990,1752726643668,-460.0,0.00018704,2]
[372640991,1752726643678,-1754.47,0.00018704,2]
[372640992,1752726643687,-3587.76,0.00018704,2]
[372640993,1752726643697,-890.48,0.00018704,2]
[372640994,1752726643706,-554.54,0.00018704,2]
[372640995,1752726643716,-2118.08,0.00018704,2]
[372640996,1752726643725,-460.0,0.00018704,2]
[372640997,1752726643736,-500.0,0.00018705,2]
[372640998,1752726643746,-500.0,0.00018705,2]
[372640999,1752726643755,-500.0,0.00018705,2]
[372641000,1752726643765,-460.0,0.00018705,2]
[372641001,1752726643774,-460.0,0.00018705,2]
[372641002,1752726643786,-724.03,0.00018705,2]
[372641003,1752726643795,-460.0,0.00018705,2]
[372641004,1752726643805,-460.0,0.00018705,2]
[372641005,1752726643815,-460.0,0.00018705,2]
[372641006,1752726643825,-460.0,0.00018705,2]
[372641007,1752726643834,-460.0,0.00018705,2]
[372641008,1752726643844,-500.0,0.00018722,2]
[372641009,1752726643854,-1185.94371772,0.00018755,2]
[372641010,1752726643863,-800.0,0.00018781,2]
[372641011,1752726643872,-500.0,0.00018792,2]
[372641012,1752726643882,-1244.0,0.0001882,2]
[372641013,1752726643891,-1244.0,0.00018823,2]
[372641014,1752726643901,-207.4,0.00018878,2]
[372641015,1752726643910,-151.0,0.00018878,2]
[372641016,1752726643920,-151.0,0.00018878,2]
[372641017,1752726643930,-151.0,0.00018878,2]
[372641018,1752726643939,-151.0,0.00018878,2]
[372641019,1752726643949,-151.0,0.00018878,2]
[372641020,1752726643958,-151.0,0.00018878,2]
[372641021,1752726643967,-151.0,0.00018878,2]
[372641022,1752726643976,-151.0,0.00018878,2]
[372641023,1752726643985,-151.0,0.00018878,2]
[372641024,1752726643995,-151.0,0.00018878,2]
[372641025,1752726644005,-151.0,0.00018878,2]
[372641026,1752726644014,-151.0,0.00018878,2]
[372641027,1752726644023,-151.0,0.00018878,2]
[372641028,1752726644034,-151.0,0.00018878,2]
[372641029,1752726644043,-151.0,0.00018878,2]
[372641030,1752726644052,-1244.0,0.00018886,2]
[372641031,1752726644061,-554.54,0.00018899,2]
[372641032,1752726644071,-302.96970909,0.000189,2]
[372641033,1752726644080,-1466.54744817,0.000189,2]
[372641034,1752726644090,-10845.1572282,0.000189,2]
[372641035,1752726644099,-168.0,0.00018913,2]
[372641036,1752726644109,-1264.86536828,0.00018945,2]
[372641037,1752726644118,-460.0,0.00018973,2]
[372641038,1752726644127,-460.0,0.00018973,2]
[372641039,1752726644137,-460.0,0.00018973,2]
[372641040,1752726644147,-460.0,0.00018973,2]
[372641041,1752726644156,-2162.71,0.00018973,2]
[372641042,1752726644165,-181.3323063,0.00018973,2]
[372641043,1752726644174,-460.0,0.00018973,2]
[372641044,1752726644184,-460.0,0.00018974,2]
[372641045,1752726644194,-460.0,0.00018974,2]
[372641046,1752726644204,-460.0,0.00018974,2]
[372641047,1752726644217,-460.0,0.00018974,2]
[372641048,1752726644226,-460.0,0.00018974,2]
[372641049,1752726644235,-2745.49,0.00018974,2]
[372641050,1752726644246,-735.56,0.00018974,2]
[372641051,1752726644255,-5690.65,0.00018974,2]
[372641052,1752726644265,-475.31,0.00018974,2]
[372641053,1752726644274,-460.0,0.00018974,2]
[372641054,1752726644286,-2547.1,0.00018974,2]
[372641055,1752726644295,-460.0,0.00018974,2]
[372641056,1752726644305,-460.0,0.00018974,2]
[372641057,1752726644315,-2232.09,0.00018974,2]
[372641058,1752726644324,-1730.11,0.00018974,2]
[372641059,1752726644334,-587.73,0.00018974,2]
[372641060,1752726644343,-460.0,0.00018974,2]
[372641061,1752726644353,-486.15,0.00018974,2]
[372641062,1752726644363,-460.0,0.00018974,2]
[372641063,1752726644373,-460.0,0.00018974,2]
[372641064,1752726644382,-812.66,0.00018974,2]
[372641065,1752726644392,-460.0,0.00018975,2]
[372641066,1752726644401,-460.0,0.00018975,2]
[372641067,1752726644411,-512.88,0.00018975,2]